Cogmind - Beta 16.1 @@@ ROGUE MODE // 2026.03.30 @ 15:32:15 Player: konomiyu Result: Destroyed by Optimus with Helical Railgun Performance ------------- Evolutions (0) 0 Regions Visited (3) 600 Robots Destroyed (37) 185 Value Destroyed (679) 679 Prototype IDs (14) 280 Alien Tech Used (0) 0 Bonus (814) 814 TOTAL SCORE: 2558 Bonus ------- Follower Combat Kills 14 Registered with UFD 300 Met Optimus in HQ 500 Cogmind --------- Core Integrity 0/250 Matter 300/300 Energy 94/100 System Corruption 0% Temperature Cool (2) Movement Treading (160) Location -7/Scraptown Parts ------- > --- POWER (1) -------- (None) > --- PROPULSION (2) --- Spiked Treads Medium Treads > --- UTILITY (2) ------ Small Storage Unit Experimental Terrain Scanner > --- WEAPON (2) ------- Advanced Assault Cannon Heavy Pick > --- INVENTORY (8) ---- Ion Engine Light Treads Advanced Sensor Array Improved Terrain Scanner Surveybot 17 Chip Overtuned Barrage Gun Grenade Launcher Improved Datajack Peak State ------------ > --- POWER ------------ Improved Deuterium Engine > --- PROPULSION ------- Spiked Treads Medium Treads > --- UTILITY ---------- Small Storage Unit Experimental Terrain Scanner > --- WEAPON ----------- Advanced Assault Cannon Heavy Pick > --- INVENTORY -------- Ion Engine Light Treads Advanced Sensor Array Improved Terrain Scanner Surveybot 17 Chip Overtuned Barrage Gun Grenade Launcher Improved Datajack [Rating: 31] Favorites ----------- Power Ion Engine Engine Ion Engine Propulsion Light Treads Treads Light Treads Utility Small Storage Unit Device Improved Terrain Scanner Storage Small Storage Unit Weapon Assault Rifle Energy Gun Salvaging Laser Ballistic Gun Assault Rifle Ballistic Cannon Advanced Assault Cannon Launcher Grenade Launcher Piercing Weapon Heavy Pick Special Melee Weapon Improved Datajack Build | -11 -10 -10 -7 ------- Run | Yrd Mat Sub Scr Slots Evolved . | . . . . Power . | . . . . Propulsion . | . . . . Utility . | . . . . Weapon . | . . . . Parts Attached 27 | 8 8 . 11 Power 5 | 1 2 . 2 Engine 5 | 1 2 . 2 Core . | . . . . Reactor . | . . . . Propulsion 5 | 2 1 . 2 Treads 5 | 2 1 . 2 Leg . | . . . . Wheel . | . . . . Hover . | . . . . Flight . | . . . . Utility 6 | 3 2 . 1 Device 5 | 2 2 . 1 Storage 1 | 1 . . . Processor . | . . . . Hackware . | . . . . Protection . | . . . . Artifact . | . . . . Weapon 11 | 2 3 . 6 Energy Gun 1 | . . . 1 Energy Cannon . | . . . . Ballistic Gun 6 | 2 2 . 2 Ballistic Cannon 1 | . . . 1 Launcher 1 | . 1 . . Special Weapon . | . . . . Impact Weapon . | . . . . Slashing Weapon . | . . . . Piercing Weapon 1 | . . . 1 Special Melee Weapon 1 | . . . 1 Unidentified Prototypes . | . . . . Parts Lost 4 | . 3 . 1 Power 3 | . 2 . 1 Propulsion . | . . . . Utility 1 | . 1 . . Weapon . | . . . . Highest Loss Streak 1 | . 1 . 1 To Critical Strikes . | . . . . Average Backups 7 | 3 7 8 7 Power . | . . 1 1 Propulsion 2 | 1 2 3 2 Utility 1 | . . 1 1 Weapon 2 | . 2 3 3 Tool/Special . | . . . . Unused Backups 11 | . 1 . 10 Power . | . . . . Propulsion 3 | . . . 3 Utility 4 | . . . 4 Weapon 4 | . 1 . 3 Tool/Special . | . . . . Average Slot Usage (%) 99 | . 96 100 99 Engine 13 | . 13 14 13 Treads 27 | . 27 28 28 Device 13 | . 11 14 14 Storage 14 | . 14 14 14 Ballistic Gun 18 | . 27 28 15 Ballistic Cannon 2 | . . . 3 Special Melee Weapon 6 | . . . 8 Peak Build Rating 31 | 9 9 9 31 Average Rating 14 | 5 8 9 17 On Entrance 6 | . 9 9 9 Avg Prop Armor Cover (%) . | . . . . Naked Turns . | . . . . Heaviest Build 25 | 13 15 15 25 Greatest Support 48 | 40 40 40 48 Greatest Overweight (x) . | . . . . Average Overweight (x) . | . . . . Largest Inventory Capacity 8 | 8 8 8 8 Average Capacity 7 | 7 8 8 8 Most Carried 8 | 4 8 8 8 Average Carried 7 | 3 7 8 7 Final Capacity 8 | 8 8 8 8 Final Carried 8 | 4 8 8 8 Class Distribution -------------------- 81% | Mutant 18% | Derelict-Mutant Dominant Class ---------------- Mutant | -10/Materials Mutant | -10/Subcaves Mutant | -7/Scraptown Resources | -11 -10 -10 -7 ----------- Run | Yrd Mat Sub Scr Matter Collected 999 | 406 455 . 138 Remotely . | . . . . Salvage Created 1028 | 228 730 . 70 Parts 71 | 16 51 . 4 Haulers Intercepted 2 | . 2 . . Recyclers Shooed 1 | . 1 . . Parts Field Recycled . | . . . . Retrieved Matter . | . . . . Parts Self-Destructed 5 | . . 5 . Prevented . | . . . . Parts Restored . | . . . . Kills | -11 -10 -10 -7 ------- Run | Yrd Mat Sub Scr Combat Hostiles Destroyed 23 | . 22 . 1 Melee 1 | . . . 1 Guns 20 | . 20 . . AOE 2 | . 2 . . Classes Destroyed 8 | 3 4 . 1 Worker 3 | 2 1 . . Tunneler 7 | 6 1 . . Hauler 2 | . 2 . . Recycler 1 | 1 . . . Mechanic 1 | . 1 . . Swarmer 9 | . 9 . . Grunt 13 | . 13 . . Scrapper 1 | . . . 1 Best Kill Streak 5 | 3 5 . 1 Combat Bots Only 5 | . 5 . 1 Max Kills in Single Turn 2 | 1 2 . 1 Gunslinging 1 | . 1 . . Exploded 1 | . 1 . . Melee 1 | . . . 1 Uniques/NPCs Destroyed . | . . . . Combat | -11 -10 -10 -7 -------- Run | Yrd Mat Sub Scr Hostile Shots Fired 139 | . 116 . 23 Missed 30 | . 28 . 2 Hits 109 | . 88 . 21 Projectile 109 | . 88 . 21 Critical Strikes 4 | . 2 . 2 Damage Taken 1363 | . 919 9 435 Core 273 | . 155 . 118 Absorbed by Shields . | . . . . Regen/Repaired (Parts) 242 | . 242 . . Core Remaining (%) 100 | 100 . . . Volleys Fired 81 | 21 60 . . Largest 2 | 2 2 . . Hottest 50 | 40 50 . . Shots Fired 162 | 42 120 . . Gun 159 | 42 117 . . Cannon . | . . . . Launcher 3 | . 3 . . Special . | . . . . Kinetic 159 | 42 117 . . Thermal . | . . . . Explosive 3 | . 3 . . Electromagnetic . | . . . . Robot Hit Streak 11 | 7 11 . . Robot Miss Streak 7 | 7 5 . . Penetration Max . | . . . . Secondary Targets 2 | . 2 . . Max Gunslinging Chain 1 | . 1 . . Shots Hit Robots 114 | 22 77 . 15 Core Hits 49 | 9 39 . 1 Critical Kills 1 | . 1 . . Critical Parts Destroyed . | . . . . Critical Strikes 1 | . 1 . . Destroy 1 | . 1 . . Melee Attacks 19 | . . . 19 Impact . | . . . . Slashing . | . . . . Piercing 5 | . . . 5 Sneak Attacks 13 | . . . 13 Combat Hostiles . | . . . . Follow-up Attacks . | . . . . Damage Inflicted 1617 | 282 1282 . 53 Guns 1223 | 282 941 . . Cannons . | . . . . Explosions 341 | . 341 . . Melee 53 | . . . 53 Ramming . | . . . . Kinetic 1223 | 282 941 . . Thermal . | . . . . Explosive 341 | . 341 . . Electromagnetic . | . . . . Impact . | . . . . Slashing . | . . . . Piercing 53 | . . . 53 Highest Corruption . | . . . . Average Corruption . | . . . . Corruption Purged . | . . . . Corruption Blocked . | . . . . Overload Shots . | . . . . Overflow Damage 7 | . 7 . . Projectiles . | . . . . Explosions 7 | . 7 . . Melee . | . . . . Knockbacks . | . . . . Impact . | . . . . Kinetic . | . . . . Secondary . | . . . . Self-Inflicted Damage 11 | . 11 . . Shots 1 | . 1 . . Rammed 1 | . 1 . . Targets Rammed 1 | . 1 . . Kicked . | . . . . Crushed . | . . . . Highest Temperature 22 | . 22 . 20 Average Temperature 10 | . 9 . 14 Received Heat Transfer 521 | . 369 6 146 Siege Activations . | . . . . Martial Activations . | . . . . Shielding Activations . | . . . . Robots Disrupted . | . . . . Combat Hostiles . | . . . . Robots Corrupted . | . . . . Combat Hostiles . | . . . . Parts Fried . | . . . . Impact Corruptions . | . . . . Robots Melted . | . . . . Combat Hostiles . | . . . . Parts Melted . | . . . . Heat Transferred . | . . . . Parts Sabotaged . | . . . . Parts Stolen . | . . . . Parts Stripped . | . . . . Power Chain Reactions . | . . . . Alert | -11 -10 -10 -7 ------- Run | Yrd Mat Sub Scr Maximum Alert Level 1 | . 1 . . Low Security (%) 71 | 100 66 . . Level 1 28 | . 33 . . Level 2 . | . . . . Level 3 . | . . . . Level 4 . | . . . . Level 5 . | . . . . High Security . | . . . . Max Security . | . . . . Peak Influence 285 | 10 285 . . Initial . | . . . . Average 144 | 2 172 . . Influence Increases 701 | 45 656 . . Destroy 0b10 Robot/C 440 | . 440 . . Destroy 0b10 Robot/NC 70 | 45 25 . . Destroy Leader 94 | . 94 . . Successful Hack 12 | . 12 . . Select Force Hacks 60 | . 60 . . Disable Machine 15 | . 15 . . Destroy Structure 10 | . 10 . . Influence Decreases 701 | 45 548 108 . Entered New Map 52 | . . 52 . Time Decay 619 | 45 518 56 . Lost Part 30 | . 30 . . Squads Dispatched 6 | . 6 . . Investigation 6 | . 6 . . Extermination . | . . . . Reinforcement . | . . . . Assault . | . . . . Garrison . | . . . . Intercept . | . . . . Searches Triggered . | . . . . Construction Impeded . | . . . . Haulers Reinforced . | . . . . Active Scanning Responses . | . . . . Cargo Convoy Interrupts . | . . . . Stealth | -11 -10 -10 -7 --------- Run | Yrd Mat Sub Scr Distress Signals 2 | . 2 . . Communications Jammed . | . . . . Distress Signals . | . . . . Times Spotted 44 | . 29 3 12 Peak Tracking Total 14 | . 5 3 14 Tactical Retreats 1 | . . . 1 Traps | -11 -10 -10 -7 ------- Run | Yrd Mat Sub Scr Traps Triggered 1 | . 1 . . Indirectly . | . . . . Trap Hack Attempts . | . . . . Triggered . | . . . . Disarmed . | . . . . Reprogrammed . | . . . . Reused . | . . . . Traps Extracted . | . . . . Installed . | . . . . Triggered . | . . . . Machines | -11 -10 -10 -7 ---------- Run | Yrd Mat Sub Scr Machines Disabled 1 | . 1 . . Max in Single Turn 1 | . 1 . . Machines Repaired . | . . . . Machines Dismantled . | . . . . Machines Sabotaged . | . . . . Overloaded Fab Kills . | . . . . Hacking | -11 -10 -10 -7 --------- Run | Yrd Mat Sub Scr Machines Accessed 23 | . 11 . 12 Terminals 8 | . 8 . . Fabricators . | . . . . Repair Stations 1 | . 1 . . Recycling Units 2 | . 2 . . Scanalyzers . | . . . . Garrison Access . | . . . . Total Hacks 115 | . 27 . 88 Successful 101 | . 13 . 88 Failed 14 | . 14 . . Catastrophic 4 | . 4 . . Database Lockouts . | . . . . Manual 16 | . 13 . 3 Terminals 21 | . 21 . . Fabricators . | . . . . Repair Stations 4 | . 4 . . Recycling Units 2 | . 2 . . Scanalyzers . | . . . . Garrison Access . | . . . . Terminal Hacks 94 | . 6 . 88 Record 88 | . . . 88 Recycling Unit Index 1 | . 1 . . Maintenance Status 1 | . 1 . . Surveillance Status 1 | . 1 . . Hauler Manifests 2 | . 2 . . Registered Components 1 | . 1 . . Fabricator Hacks . | . . . . Repair Station Hacks 4 | . 4 . . Scan Component 2 | . 2 . . Repair 2 | . 2 . . Recycling Unit Hacks . | . . . . Scanalyzer . | . . . . Garrison Access Hacks . | . . . . Unauthorized Hacks 3 | . 3 . . Terminals 1 | . 1 . . Operators 1 | . 1 . . Fabricators . | . . . . Repair Stations . | . . . . Recycling Units 2 | . 2 . . Tunnel 2 | . 2 . . Scanalyzers . | . . . . Garrison Access . | . . . . Data Cores Recovered . | . . . . Used . | . . . . Hacking Detections 9 | . 9 . . Full Trace Events 5 | . 5 . . Feedback Events . | . . . . Feedback Blocked . | . . . . Robot Schematics Acquired . | . . . . Robots Built . | . . . . Authchips . | . . . . Time . | . . . . Total Robot Build Rating . | . . . . Part Schematics Acquired . | . . . . Parts Built . | . . . . Authchips . | . . . . Time . | . . . . Total Part Build Rating . | . . . . Part Studies Acquired . | . . . . Parts Repaired 2 | . 2 . . Time 52 | . 52 . . Parts Recycled . | . . . . Recycled Matter . | . . . . Retrieved Matter . | . . . . Retrieved Components . | . . . . Parts Scanalyzed . | . . . . Part Schematics Acquired . | . . . . Parts Damaged . | . . . . Bothacking | -11 -10 -10 -7 ------------ Run | Yrd Mat Sub Scr Used RIF Installer . | . . . . Robots Hacked 13 | . . . 13 Non-combat 2 | . . . 2 Combat 11 | . . . 11 Robot Hacks Applied 13 | . . . 13 parse_system 13 | . . . 13 Relay Couplers Released . | . . . . Fabnet Peak Effective % . | . . . . Robots Rewired . | . . . . Allies Hacked . | . . . . Hacks Repelled . | . . . . Allies | -11 -10 -10 -7 -------- Run | Yrd Mat Sub Scr Total Allies 1 | . . . 1 Largest Group 1 | . . . 1 Highest-Rated Group 63 | . . . 63 Highest-Rated Ally 63 | . . . 63 Total Orders 1 | . . . 1 FOLLOW 1 | . . . 1 Ally Attacks 7 | . . . 7 Total Damage 118 | . . . 118 Kills 2 | . . . 2 Allies Corrupted . | . . . . Allies Melted . | . . . . Intel | -11 -10 -10 -7 ------- Run | Yrd Mat Sub Scr Active Infowar (turns) 5845 | 47 1126 214 4458 Terrain 5820 | 22 1126 214 4458 Seismic 25 | 25 . . . Robot Analysis Total . | . . . . Derelict Logs Recovered . | . . . . Drone Launches . | . . . . Drone Recoveries . | . . . . Exploration | -11 -10 -10 -7 ------------- Run | Yrd Mat Sub Scr Turns Passed 6387 | 281 1434 214 4458 Spaces Moved 3630 | 132 709 130 2659 Core 7 | 7 . . . Treads 3623 | 125 709 130 2659 Legs . | . . . . Wheels . | . . . . Hover . | . . . . Flight . | . . . . Fastest Speed 50 | 50 160 160 160 Average Speed 159 | 154 160 160 160 Slowest Speed 160 | 160 160 160 160 Overloaded Moves . | . . . . Propulsion Burnouts . | . . . . Robots Hopped . | . . . . Potential Cave-ins . | . . . . Cave-ins Triggered . | . . . . Exploration Rate (%) 53 | 4 97 16 95 Regions Visited 3 Branch Regions 2 Pre-discovered Areas 7 | . 2 . 5 Known Exits Taken . | . . . . Unknown Exits Taken 3 | 1 1 1 . Scrap Searched 10 | . . . 10 Spaces Dug 1 | . . . 1 Terrain Destroyed 8 | . 7 . 1 Melee 1 | . . . 1 Projectile . | . . . . AOE 7 | . 7 . . Terrain Rammed . | . . . . Walls Destroyed . | . . . . Machines Disabled . | . . . . Actions | -11 -10 -10 -7 --------- Run | Yrd Mat Sub Scr Total 4051 | 164 892 136 2859 Wait 249 | . 96 7 146 Move 3627 | 131 708 129 2659 Hop . | . . . . Pick Up 21 | 4 9 . 8 Fast Attach 10 | 7 3 . . Attach 2 | . 2 . . Detach . | . . . . Swap 19 | 1 6 . 12 Drop 21 | . 7 . 14 Fire 81 | 21 60 . . Melee 19 | . . . 19 Ram . | . . . . Kick . | . . . . Crush 1 | . 1 . . Escape Stasis . | . . . . Rewire 1 | . . . 1 Trap . | . . . . Miscellaneous . | . . . . Route ------- -11/Scrapyard -10/Materials (discovered 6 exits: [*Mat x3] / [*Min x2] / [*Sub]) -10/Subcaves -7/Scraptown (discovered 2 exits: [*Fac x2]) History --------- Turn | Location | Event 4 | -11/Scrapyard | Discovered new exit (range 16) 282 | -11/Scrapyard | Entered Materials 283 | -10/Materials | Met a group of wandering Federalists 302 | -10/Materials | Build established: Mutant 607 | -10/Materials | Discovered new exit (range 16) 675 | -10/Materials | Core integrity fell below 50% 781 | -10/Materials | Repaired Lgt. Treads 808 | -10/Materials | Repaired Lgt. Treads 1067 | -10/Materials | Discovered new exit (range 13) 1193 | -10/Materials | Discovered new exit (range 9) 1326 | -10/Materials | Discovered new exit (range 13) 1504 | -10/Materials | Discovered new exit (range 7) 1605 | -10/Materials | Discovered new exit (range 13) 1716 | -10/Materials | Entered Subcaves 1717 | -10/Subcaves | Continued accompanying wandering Federalists (6) 1717 | -10/Subcaves | Approached by a straggling Scientist 1920 | -10/Subcaves | Wandering Federalist uncovered a shortcut to Scraptown 1930 | -10/Subcaves | Entered Scraptown 2629 | -7/Scraptown | Discovered new exit (range 7) 3176 | -7/Scraptown | Heard Great Nut preacher, LISTEN AND RECITE! 3194 | -7/Scraptown | Visited Symbiants 3250 | -7/Scraptown | Visited Cyclists 3376 | -7/Scraptown | Visited Bundlers 3501 | -7/Scraptown | Visited Awakened 3580 | -7/Scraptown | Visited CPS Storage 3598 | -7/Scraptown | Visited Cave Peace 3727 | -7/Scraptown | Visited Red Mages 3810 | -7/Scraptown | Visited UFD Registry 3810 | -7/Scraptown | Registered with UFD as "Smoothsys" 3872 | -7/Scraptown | Entered Cyclist Reading Room 3887 | -7/Scraptown | Learned location of Zion (-7) 4398 | -7/Scraptown | Visited Cartography Club 4462 | -7/Scraptown | Found Surveybot 17 Chip 4869 | -7/Scraptown | Discovered new exit (range 5) 5192 | -7/Scraptown | Visited DA-N13 Charitable Foundation 5218 | -7/Scraptown | Found DCF Scrap (27 items) 5350 | -7/Scraptown | Visited Botcube Research 5370 | -7/Scraptown | Found Botcube 5440 | -7/Scraptown | Botcube activated 5460 | -7/Scraptown | Botcube completed mutation into wheeled form, armed with 1 cannon, 1 melee weapon. 5530 | -7/Scraptown | Build established: Derelict-Mutant 5547 | -7/Scraptown | Visited Supply Room 5696 | -7/Scraptown | Visited Curators Association 5755 | -7/Scraptown | Visited Infowarlord's Domain 5773 | -7/Scraptown | Found Exp. Terrain Scanner 5811 | -7/Scraptown | Visited Derelict Rescue Squad 5870 | -7/Scraptown | Visited Abandonware Association 5904 | -7/Scraptown | Learned abandonware demo "MELTYB.EXE" 5942 | -7/Scraptown | Visited Chapter 10 6027 | -7/Scraptown | Visited Scrap Suit Storage 6209 | -7/Scraptown | Met Optimus 6209 | -7/Scraptown | Accepted into 0bPrime 6358 | -7/Scraptown | Attacked by Scraptown defenders 6363 | -7/Scraptown | Learned location of Warlord (-5) 6363 | -7/Scraptown | Learned location of Armory (-4) 6363 | -7/Scraptown | Learned location of Testing (-3) 6363 | -7/Scraptown | Learned 16 Factory zone layouts 6363 | -7/Scraptown | Learned 8 Access zone layouts 6363 | -7/Scraptown | Learned 8 Lower Caves zone layouts 6363 | -7/Scraptown | Learned 16 Lower Caves zone layouts 6363 | -7/Scraptown | Learned 20 Lower Caves zone layouts 6363 | -7/Scraptown | Learned location of 2 exits from Research 6363 | -7/Scraptown | Learned 8 Proximity Caves zone layouts 6363 | -7/Scraptown | Learned location of 1 exit from Lower Caves 6363 | -7/Scraptown | Learned location of 3 exits from Upper Caves 6376 | -7/Scraptown | Core integrity fell below 20% 6388 | -7/Scraptown | Destroyed by Optimus with Helical Railgun Last Messages --------------- >>Record "ACCESS/PRO=2" Proximity Caves entrances. Data stored: Proximity Caves entrances (x2). 06366_ Slug penetrates Wall. 06367_ Critical hit (Burn: +50). 06368_ Slug penetrates Wall. 06370_ NQ-LSQ(r) destroyed. 06375_ Critical hit (Burn: +50). 06377_ C8-UKX(j) destroyed. 06378_ Imp. Deuterium Engine destroyed. 06380_ Acquired 15 matter. 06383_ Penetrated by Slug. 06383_ Slug penetrates Wall. 06385_ Bolt penetrates Wall. 06386_ Penetrated by Slug. 06386_ Slug penetrates Wall. 06386_ Penetrated by Slug. 06386_ Slug penetrates Earth. 06388_ Penetrated by Slug. [Achievement: This Is Interesting...] Map ----- +----------------------------------------------------+ | | | | | | | | | | | | | | | ????##??##??????#????????????#???????????????????? | | #?????##?##??????#??????#????????#??????#????????? | | ?#????#??????????#????????????##???#?????????????? | | ?????#???????????##????????#??????????????#??????? | | ??#????##????????????#???#???#????#??????????????? | | ?????#????????#?????##?????#?#????#??????????????? | | ?#?#????#???????#????????????##???????#??????????? | | ?????###????????#?#?##???????????????????????????? | | ???#????????#?????????#?????#?#?#?????????#??????? | | ?#??????###?#???##????##?###?????#?????#?????????# | | ???????#?###?##??#????##?#?#???#?#???#???#???????? | | ????#?????#??#???#?#???##??#####???##????????????? | | ??###??????#???#????#?#?####"""##?#????#?##???#??? | | ################??####### ##" "######??#????????#? | | #"""##""|##"""#?### ##?# ## < ###???####?#??????? | | #"" ##""|##!!"#### ;##;##c ##?#?#??###?#?????? | | !=!c ###???#?##???????? | | =%[! ####?####????????? | | ################## ###@#######??###??##?#?#???? | | #????#?????#??##### ##?#;E######?##?##??####??##? | | ?#???#?####?#?#?#?# #??#=# #???#?#??#??##?##??? | | #######??##?#?##?## # ##3# ; #?####??#????#??#??? | | """"""#?########### " "*x! #!### ##?#?#?#?##?#??# | | " ###?#"""""""""# # # #!!# ##??###????#???? | | ##?# " " " # ## h### ##%# #?#???#????#?#?? | | #?## # ## # "&=%p]/#?#????###??##?? | | #### "# #" # #" #X####h#???##????#??#?? | | #### "#X#" # "# # #### ##p######?##?##?#?? | | #### "###" # # # # #??#####?###?#?# | | #?## """"" # ####### #######?#?????##??#?? | | ###?# # # #?#??#####???##? | | #?# # # #??#???###?#???? | | # #####?##### ##### ## ###########?####?#?##????? | | # ########### ##### ## ###############???#??????? | | " """"""""""" """"" "" "## """"""""##?##????##? | | "## " " " "#??###?#???? | | "## ""##?##??????? | | "## & "###????#???? | | "## &"#?#????????? | | "###?##?????? | | """"""""""""""""""" "## " " " "#???#??????? | | """"""""""""""""""" "## """"""""#?#??#?????? | | ################"" "##############??#?#?????? | +----------------------------------------------------+ Best States ------------- Heat Dissipation 25 Energy Generation 16 Energy Capacity 290 Matter Stores 300 Matter Capacity 300 Sight Range 16 Terrain Scan Range 30 Terrain Scan Density 10 Evasion (%) 40 Recoil Reduction 2 Item Schematics ----------------- None Robot Schematics ------------------ None Fabricated ------------ Nothing Repaired ---------- Lgt. Treads | 8% | -10/Materials Lgt. Treads | 18% | -10/Materials Studied --------- None Alien Tech Used ----------------- None Achievements -------------- Bob, First Of His Name Civilization 2243 Frankenstein Link The Feds Strength In Numbers This Is Interesting... Challenges ------------ None Game ------ Seed BackupBraceClaws Manual? 0 Play Time 01:07:25 Cumulative 31.7 hours Start 2026.03.30 @ 13:58:15 End 2026.03.30 @ 15:32:15 Sessions 1 Manual Loads 0 Difficulty Rogue Special Mode None Game No. 35 Rogue 35 Adventurer 0 Explorer 0 Win Type - Total 0 Types 0/0/0/0/0/0/0/0/0/0 Lore% 29 Gallery% 23 Achievement% 18 Wizard Run 0 Options --------- Layout 1 ASCII 0 Keyboard 1 Movement Vi Keybinds 0 Fullscreen 2 Font 24/Smallcaps Map View 50x35 Zoom Use 0% Tactical HUD 1 Map Filters NONE Filters NONE Steam 1 RUN: 06e881a8-9385-41c5-b042-c3d22ad28721